bitfinex/quotes_ETHUSD_20250323
["timestamp","ask_amount","ask_price","bid_price","bid_amount"]
[1742762533944,0.23359639,2002.2,2001.9,9.99017]
[1742762534142,0.23359639,2002.2,2002.0,5.78927]
[1742762536450,0.23359639,2002.2,2002.0,0.7943]
[1742762538066,0.23359639,2002.2,2002.0,5.78928]
[1742762541167,0.23359639,2002.2,2002.0,0.7943]
[1742762546167,0.23359639,2002.2,2001.9,4.99508]
[1742762547039,0.23359639,2002.2,2002.0,0.46811269]
[1742762548160,0.23359639,2002.2,2001.9,4.99508]
[1742762550178,0.23359639,2002.2,2001.9,9.99022]
[1742762550542,0.23359639,2002.2,2001.9,4.99508]
[1742762550743,0.23359639,2002.2,2002.0,0.46804505]
[1742762552278,0.23359639,2002.2,2001.9,9.99018]
[1742762555175,0.23359639,2002.2,2001.9,4.99508]
[1742762555577,0.23359639,2002.2,2001.9,9.99015]
[1742762556580,0.23359639,2002.2,2001.9,4.99507]
[1742762562560,0.23359639,2002.2,2001.9,9.99015]
[1742762562971,0.23359639,2002.2,2001.9,4.99507]
[1742762564358,5.22812639,2002.2,2001.9,4.99507]
[1742762564558,6.55031503,2002.2,2001.9,4.99507]
[1742762566189,1.55578503,2002.2,2001.9,4.99507]
[1742762567573,0.23359639,2002.2,2001.9,4.99507]
[1742762572777,4.995,2002.0,2001.6,6.60633804]
[1742762572990,0.22851843,2001.9,2001.6,10.77227804]
[1742762573391,0.22851843,2001.9,2001.6,9.99172]
[1742762573616,0.22851843,2001.9,2001.6,4.99584]
[1742762574692,0.22851843,2001.9,2001.6,9.99169]
[1742762575126,0.22851843,2001.9,2001.6,11.15957567]
[1742762575634,0.22851843,2001.9,2001.6,12.93323969]
[1742762576837,0.22851843,2001.9,2001.7,4.99572]
[1742762578950,0.22851843,2001.9,2001.7,6.76938402]
[1742762579105,0.22851843,2001.9,2001.8,8.14906402]
[1742762579312,27.63,2002.5,2002.3,4.99425]
[1742762579506,4.99261,2003.0,2002.6,4.99339]
[1742762579810,4.61,2002.9,2002.7,4.99325]
[1742762580122,9.60289,2002.9,2002.5,4.99374]
[1742762580645,9.60289,2002.9,2002.5,9.98729]
[1742762580848,4.61,2002.9,2002.5,9.9872]
[1742762581347,9.60276,2002.9,2002.5,4.99355]
[1742762581556,4.99303,2002.8,2002.4,10.81766]
[1742762582052,4.99303,2002.8,2002.4,5.82375]
[1742762582237,4.99303,2002.8,2002.4,10.81765]
[1742762582438,4.99303,2002.8,2002.4,5.82375]
[1742762583010,4.99303,2002.8,2002.4,7.59741402]
[1742762583232,4.99303,2002.8,2002.4,8.91158042]
[1742762583839,4.99303,2002.8,2002.4,6.3080164]
[1742762584168,6.76669402,2002.8,2002.4,4.99385]
[1742762584373,11.75993402,2002.8,2002.4,4.99385]
[1742762584562,4.99326,2002.7,2002.4,4.99385]
[1742762584741,6.76669402,2002.8,2002.4,4.99385]
[1742762584946,11.75994402,2002.8,2002.4,4.99385]
[1742762585155,6.76669402,2002.8,2002.4,4.99385]
[1742762585464,11.75992402,2002.8,2002.4,4.99385]
[1742762585641,6.76669402,2002.8,2002.4,4.99385]
[1742762586138,0.2123737,2002.7,2002.4,4.99385]
[1742762587275,3.2123737,2002.7,2002.2,7.59806402]
[1742762587483,6.76783402,2002.4,2001.9,0.8331]
[1742762587673,14.37676402,2002.4,2002.0,4.99497]
[1742762588049,0.21099184,2002.3,2002.0,4.99497]
[1742762591315,0.21099184,2002.3,2002.0,6.76863402]
[1742762591483,0.21099184,2002.3,2002.1,4.99475]
[1742762591685,0.21099184,2002.3,2002.1,6.76841402]
[1742762592299,0.21099184,2002.3,2002.1,4.99475]
[1742762594435,0.21099184,2002.3,2002.1,11.76297402]
[1742762594606,0.21099184,2002.3,2002.1,6.76822402]
[1742762595092,0.21099184,2002.3,2002.2,4.9945]
[1742762595296,0.21099184,2002.3,2002.2,8.15126402]
[1742762595489,3.0,2002.5,2002.3,4.9941]
[1742762595683,3.0,2002.5,2002.3,6.76776402]
[1742762596318,32.239,2002.6,2002.3,6.76776402]
[1742762596816,32.239,2002.6,2002.3,4.9941]
[1742762597296,32.239,2002.6,2002.3,6.76776402]
[1742762597615,32.239,2002.6,2002.4,4.99397]
[1742762597825,32.239,2002.6,2002.4,6.76763402]
[1742762598190,32.239,2002.6,2002.4,4.99397]
[1742762598394,27.629,2002.6,2002.4,11.76149402]
[1742762598625,27.629,2002.6,2002.5,6.76741402]
[1742762598925,27.629,2002.6,2002.5,4.99375]
[1742762601031,27.8414649,2002.6,2002.5,4.99375]
[1742762604739,27.8414649,2002.6,2002.5,7.58351402]
[1742762604960,27.8414649,2002.6,2002.5,5.80985]
[1742762608644,0.2124649,2002.6,2002.5,5.80985]
[1742762609035,7.609,2002.8,2002.5,5.80985]
[1742762609240,0.21346678,2002.6,2002.5,5.80985]
[1742762609544,7.609,2002.8,2002.5,5.80985]
[1742762610041,0.21374386,2002.7,2002.5,5.80985]
[1742762610344,0.21374386,2002.7,2002.4,6.76761402]
[1742762611643,0.21374386,2002.7,2002.4,11.76147402]
[1742762613462,0.21374386,2002.7,2002.4,6.76752402]
[1742762614463,0.21374386,2002.7,2002.4,4.99386]
[1742762614658,0.21374386,2002.7,2002.3,6.76789402]
[1742762614659,5.20702386,2002.7,2002.3,6.76789402]
[1742762614860,6.98068788,2002.7,2002.2,4.99444]
[1742762615158,4.99363,2002.6,2002.2,6.76810402]
[1742762615463,0.21324169,2002.5,2002.2,6.76810402]
[1742762616052,0.21324169,2002.5,2002.3,4.99421]
[1742762617770,0.21324169,2002.5,2002.3,11.76201402]
[1742762617945,0.21324169,2002.5,2002.3,6.76780402]
[1742762618145,4.99328,2002.7,2002.3,11.76195402]
[1742762618356,0.21296456,2002.4,2002.3,11.76195402]
[1742762618890,4.99328,2002.7,2002.3,11.76195402]
[1742762619062,0.21296456,2002.4,2002.3,11.76195402]
[1742762619380,4.99328,2002.7,2002.3,11.76195402]
[1742762619879,0.2135188,2002.6,2002.3,6.76780402]
[1742762620244,0.2135188,2002.6,2002.3,4.99414]
[1742762625293,5.2070288,2002.6,2002.3,4.99414]
[1742762625585,5.2070288,2002.6,2002.1,5.75832]
[1742762625586,4.99375,2002.5,2002.1,6.76821402]
[1742762625814,4.99375,2002.5,2002.1,4.99455]
[1742762625815,3.0,2002.4,2002.1,4.99455]
[1742762625986,3.21296456,2002.4,2002.1,4.99455]
[1742762626511,3.21296456,2002.4,2002.1,6.76821402]
[1742762626720,3.21296456,2002.4,2002.1,4.99455]
[1742762627209,6.70448442,2002.4,2002.0,6.76865402]
[1742762627374,10.20129456,2002.4,2002.0,6.76865402]
[1742762627573,9.81609456,2002.4,2002.0,6.76865402]
[1742762629233,9.81609456,2002.4,2002.0,11.76355402]
[1742762633630,4.82196456,2002.4,2002.1,4.99467]
[1742762633810,9.81598456,2002.4,2002.1,4.99467]
[1742762634130,9.81598456,2002.4,2002.1,6.76833402]
[1742762636126,9.81598456,2002.4,2002.1,4.99467]
[1742762637232,9.81598456,2002.4,2002.0,6.76856402]
[1742762638439,9.81598456,2002.4,2002.0,11.76340402]
[1742762638939,9.81598456,2002.4,2002.1,4.99474]
[1742762642214,4.82196456,2002.4,2002.1,4.99474]
[1742762642420,4.82196456,2002.4,2002.1,6.76840402]
[1742762643150,0.21296456,2002.4,2002.2,6.76807402]
[1742762643367,3.21296456,2002.4,2002.1,6.3016444]
[1742762643568,3.0,2002.4,2002.1,4.9947]
[1742762643872,0.193371,2002.3,2002.1,4.9947]
[1742762666796,0.193371,2002.3,2002.0,6.37109]
[1742762667372,4.99463,2002.2,2001.8,0.8002]
[1742762667695,5.86329351,2002.1,2001.7,4.99572]
[1742762667906,4.99567,2001.8,2001.4,7.57024402]
[1742762668077,4.99567,2001.8,2001.5,1.77366402]
[1742762668281,0.17126968,2001.7,2001.5,1.77366402]
[1742762670010,0.17126968,2001.7,2001.5,6.76990402]
[1742762670309,4.99533,2001.9,2001.5,6.76990402]
[1742762670495,0.16962584,2001.6,2001.5,6.76990402]
[1742762670671,4.99533,2001.9,2001.5,6.76990402]
[1742762670868,0.16962584,2001.6,2001.5,6.76990402]
[1742762671082,4.99533,2001.9,2001.5,6.76990402]
[1742762671295,0.16962584,2001.6,2001.5,6.76990402]
[1742762671496,6.74216525,2001.9,2001.5,6.76990402]
[1742762671706,0.16962584,2001.6,2001.5,6.76990402]
[1742762672001,6.74216525,2001.9,2001.5,6.76990402]
[1742762672208,0.16962584,2001.6,2001.5,6.76990402]
[1742762672695,6.74216525,2001.9,2001.5,6.76990402]
[1742762672895,0.16962584,2001.6,2001.5,6.76990402]
[1742762673100,6.74216525,2001.9,2001.5,6.76990402]
[1742762673431,0.16962584,2001.6,2001.5,6.76990402]
[1742762674007,6.74216525,2001.9,2001.5,6.76990402]
[1742762674506,0.17018057,2001.8,2001.5,6.76990402]
[1742762676019,0.17018057,2001.8,2001.5,4.99624]
[1742762682215,0.17018057,2001.8,2001.6,4.99591]
[1742762686799,0.17018057,2001.8,2001.5,4.99624]
[1742762687115,0.17018057,2001.8,2001.5,9.99233]
[1742762697031,0.17018057,2001.8,2001.5,4.99609]
[1742762697231,0.17018057,2001.8,2001.5,9.99218]
[1742762700238,0.17018057,2001.8,2001.6,4.99595]
[1742762705559,0.17018057,2001.8,2001.5,4.9962]
[1742762705711,6.76955402,2001.7,2001.3,4.99661]
[1742762705913,0.16642092,2001.6,2001.4,4.99639]
[1742762706113,4.61,2001.7,2001.4,4.99639]
[1742762706317,0.16642092,2001.6,2001.4,4.99639]
[1742762706538,4.61,2001.7,2001.4,4.99639]
[1742762706737,4.61,2001.7,2001.5,0.46861372]
[1742762707534,6.2474464,2001.7,2001.5,0.46861372]
[1742762708471,6.2474464,2001.7,2001.4,4.99639]
[1742762709753,11.2432064,2001.7,2001.4,4.99639]
[1742762710058,11.2432064,2001.7,2001.3,4.99661]
[1742762710752,11.2432064,2001.7,2001.4,0.46871863]
[1742762711647,11.2432064,2001.7,2001.3,9.99324]
[1742762711846,9.60576,2001.7,2001.3,9.99324]
[1742762713353,9.60576,2001.7,2001.3,4.99661]
[1742762713821,9.60576,2001.7,2001.4,0.46827833]
[1742762714828,9.60576,2001.7,2001.3,9.99321]
[1742762716363,9.60576,2001.7,2001.3,4.9966]
[1742762717164,4.61,2001.7,2001.3,4.9966]
[1742762717463,4.61,2001.7,2001.4,5.46481239]
[1742762717628,4.9954,2001.9,2001.5,7.53051402]
[1742762717833,4.61,2001.8,2001.5,7.53051402]
[1742762718059,4.61,2001.8,2001.5,5.75685]
[1742762719340,1.77366402,2001.6,2001.3,0.7606]
[1742762719661,6.77000402,2001.5,2001.1,5.76776]
[1742762719864,4.99634,2001.5,2001.1,5.76776]
[1742762720029,9.99279,2001.5,2001.1,5.76776]
[1742762720466,4.99634,2001.5,2001.2,0.46833456]
[1742762721036,0.16658938,2001.4,2001.2,0.46833456]
[1742762721664,0.98165959,2001.3,2001.1,5.76776]
[1742762721968,0.16636029,2001.2,2001.1,5.76776]
[1742762722567,0.16636029,2001.2,2001.1,0.01]
[1742762722729,1.41922268,2001.2,2001.1,0.01]
[1742762723168,0.16636029,2001.2,2001.1,0.01]
[1742762723632,0.16636029,2001.2,2001.1,6.78091402]
[1742762723837,0.16636029,2001.2,2001.1,8.18238307]
[1742762724146,3.0,2001.6,2001.4,5.7979]
[1742762724348,4.00985418,2001.6,2001.4,0.8015]
[1742762724963,3.0,2001.6,2001.4,0.8015]
[1742762731744,3.0,2001.6,2001.2,0.8015]
[1742762731745,4.99636,2001.5,2001.2,0.8015]
[1742762731939,4.99636,2001.5,2001.1,5.00723]
[1742762732176,4.99636,2001.5,2001.1,6.78089402]
[1742762732675,4.99636,2001.5,2001.1,11.77793402]
[1742762733047,4.99636,2001.5,2001.2,4.99699]
[1742762734568,9.99281,2001.5,2001.1,5.55724]
[1742762734772,9.99278,2001.5,2001.1,7.33090402]
[1742762734973,9.99278,2001.5,2001.1,5.55724]
[1742762735176,4.99636,2001.5,2001.1,5.55724]
[1742762735374,4.99636,2001.5,2001.2,0.46798079]
[1742762736174,0.15128066,2001.4,2001.2,0.46798079]
[1742762736379,0.15128066,2001.4,2001.1,5.55724]
[1742762736885,0.15128066,2001.4,2001.2,4.99699]
[1742762740478,12.99218,2001.6,2001.2,4.99699]
[1742762740681,0.15093819,2001.3,2001.2,4.99699]
[1742762740873,12.99218,2001.6,2001.2,4.99699]
[1742762741071,0.15149286,2001.5,2001.2,4.99699]
[1742762742299,5.14774286,2001.5,2001.2,4.99699]
[1742762743993,0.15149286,2001.5,2001.2,4.99699]
[1742762748408,0.15149286,2001.5,2001.3,0.4682036]
[1742762749813,0.15149286,2001.5,2001.2,4.99699]
[1742762750307,0.15149286,2001.5,2001.2,9.99384]
[1742762750611,0.15149286,2001.5,2001.2,4.99685]
[1742762751519,0.15149286,2001.5,2001.3,0.46842706]
[1742762752815,0.15149286,2001.5,2001.2,4.99685]
[1742762753526,0.15149286,2001.5,2001.2,5.75345]
[1742762755416,0.15149286,2001.5,2001.3,0.46855725]
[1742762756516,0.15149286,2001.5,2001.2,5.75345]
[1742762759216,0.15149286,2001.5,2001.3,0.468565]
[1742762760320,0.15149286,2001.5,2001.4,4.9965]
[1742762760518,0.15149286,2001.5,2001.4,8.12672476]
[1742762760701,0.98652058,2001.7,2001.5,4.99624]
[1742762761826,0.98652058,2001.7,2001.6,0.46819044]
[1742762763622,0.98652058,2001.7,2001.4,11.29944]
[1742762763920,0.98652058,2001.7,2001.5,4.9962]
[1742762764322,7.7559746,2001.7,2001.4,0.7566]
[1742762764626,7.7559746,2001.7,2001.3,9.99331]
[1742762765326,7.7559746,2001.7,2001.4,0.46768992]
[1742762765827,7.7559746,2001.7,2001.4,5.46415992]
[1742762766047,0.14022063,2001.6,2001.4,5.46415992]
[1742762766249,7.7559746,2001.7,2001.4,5.46415992]
[1742762766549,0.14022063,2001.6,2001.4,5.46415992]
[1742762766724,0.14022063,2001.6,2001.4,4.99647]
[1742762766912,7.7559746,2001.7,2001.4,4.99647]
[1742762767242,7.7559746,2001.7,2001.3,4.99657]
[1742762767542,0.14022063,2001.6,2001.3,4.99657]
[1742762767826,7.7559746,2001.7,2001.3,4.99657]
[1742762768130,5.13624063,2001.6,2001.3,4.99657]
[1742762768330,0.14022063,2001.6,2001.3,4.99657]
[1742762768624,7.7559946,2001.7,2001.3,4.99657]
[1742762768793,0.14022063,2001.6,2001.3,4.99657]
[1742762768998,7.7559946,2001.7,2001.3,4.99657]
[1742762769216,0.14022063,2001.6,2001.3,4.99657]
[1742762769544,7.7559946,2001.7,2001.3,4.99657]
[1742762769700,0.13994335,2001.5,2001.3,4.99657]
[1742762769900,7.7559946,2001.7,2001.3,4.99657]
[1742762770150,0.14022063,2001.6,2001.3,4.99657]
[1742762770654,0.13994335,2001.5,2001.3,4.99657]
[1742762770947,7.7559946,2001.7,2001.4,0.46748233]
[1742762772072,6.76991402,2001.5,2001.2,0.8053]
[1742762772950,4.99625,2001.5,2001.2,0.8053]
[1742762773152,6.76991402,2001.5,2001.2,0.8053]
[1742762773447,1.77366402,2001.3,2001.1,0.01]
[1742762773747,6.77062402,2001.3,2001.1,0.01]
[1742762773955,6.77066402,2001.2,2001.1,0.01]
[1742762774155,9.77066402,2001.2,2001.1,0.01]
[1742762774450,7.997,2001.2,2001.1,0.01]
[1742762779577,8.70373729,2001.2,2001.1,0.01]
[1742762780173,13.31373729,2001.2,2001.1,0.01]
[1742762781077,13.45211709,2001.2,2001.1,0.01]
[1742762782177,15.22578111,2001.2,2001.1,0.01]
[1742762785596,13.45211709,2001.2,2001.1,0.01]
[1742762785749,7.7483798,2001.2,2001.1,0.01]
[1742762786856,3.1383798,2001.2,2001.1,0.01]
[1742762787058,7.7493798,2001.2,2001.1,0.01]
[1742762789278,3.1383798,2001.2,2001.1,0.01]
[1742762793085,7.7493798,2001.2,2001.1,0.01]
[1742762793891,3.1383798,2001.2,2001.1,0.01]
[1742762799381,0.1383798,2001.2,2001.1,5.00725]
[1742762799579,0.1383798,2001.2,2001.1,0.01]
[1742762816714,0.1383798,2001.2,2001.1,3.59418942]
[1742762816914,31.62088743,2001.5,2001.4,0.7762]
[1742762817110,31.62088743,2001.5,2001.4,5.7727]
[1742762817111,27.78179953,2001.5,2001.4,5.7727]
[1742762817413,27.78179953,2001.5,2001.4,7.32016402]
[1742762817612,0.13779953,2001.5,2001.4,8.09636402]
[1742762817799,0.13779953,2001.5,2001.4,9.90535742]
[1742762818001,1.77366402,2001.9,2001.5,5.77238]
[1742762818202,4.77366402,2001.9,2001.5,5.77238]
[1742762818412,6.76891402,2001.9,2001.5,5.77238]
[1742762819312,0.99581819,2001.8,2001.5,5.77238]
[1742762819984,0.99581819,2001.8,2001.5,5.77234]
[1742762820185,0.99581819,2001.8,2001.5,3.98501876]
[1742762820382,0.99581819,2001.8,2001.7,4.99575]
[1742762821617,0.99581819,2001.8,2001.6,5.54594]
[1742762821820,0.99581819,2001.8,2001.6,0.55]
[1742762823232,0.99581819,2001.8,2001.5,0.7762]
[1742762824998,0.99581819,2001.8,2001.5,5.77244]
[1742762825199,0.99581819,2001.8,2001.6,4.99596]
[1742762825403,7.61,2002.0,2001.8,4.99549]
[1742762825727,0.99113803,2002.2,2002.0,5.78471]
[1742762825926,27.64,2002.7,2002.4,4.994]
[1742762826148,4.73737333,2002.6,2002.4,4.994]
[1742762826301,4.73737333,2002.6,2002.3,5.78409]
[1742762826851,5.72837649,2002.6,2002.3,0.7899]
[1742762827448,5.72837649,2002.6,2002.3,5.78414]
[1742762828751,10.72191649,2002.6,2002.3,0.7899]
[1742762829053,10.72191649,2002.6,2002.2,4.99432]
[1742762829718,10.72191649,2002.6,2002.2,9.9887]
[1742762831351,10.72191649,2002.6,2002.2,4.99432]
[1742762838024,10.72191649,2002.6,2002.1,4.99475]
[1742762839566,4.99376,2002.5,2002.1,4.99475]
[1742762839760,0.13062924,2002.5,2002.1,11.4141897]
[1742762839961,0.13062924,2002.5,2002.2,4.99445]
[1742762840156,0.13062924,2002.5,2002.3,5.74506]
[1742762840362,0.13062924,2002.5,2002.3,5.74495]
[1742762840741,0.13062924,2002.5,2002.3,10.73907]
[1742762840963,0.13062924,2002.5,2002.3,5.74495]
[1742762842573,0.13062924,2002.5,2002.4,4.994]
[1742762843468,0.13062924,2002.5,2002.4,6.067895]
[1742762845144,0.13062924,2002.5,2002.4,4.994]
[1742762854096,27.64,2002.7,2002.5,4.99372]
[1742762854275,4.607,2002.8,2002.5,4.99372]
[1742762854682,23.43432601,2002.9,2002.5,4.99372]
[1742762854866,18.44148601,2002.9,2002.6,4.9935]
[1742762855068,0.98826967,2002.7,2002.6,0.8057]
[1742762856186,1.10901533,2002.7,2002.6,0.8057]
[1742762856476,1.10901533,2002.7,2002.5,4.9936]
[1742762856850,1.10901533,2002.7,2002.4,5.79967]
[1742762857546,1.10901533,2002.7,2002.4,10.79353]
[1742762857797,1.10901533,2002.7,2002.5,4.99374]
[1742762861863,1.10901533,2002.7,2002.5,9.98736]
[1742762862067,1.10901533,2002.7,2002.5,9.98726]
[1742762862372,0.12074566,2002.7,2002.6,5.815]
[1742762862559,12.06032258,2002.9,2002.7,9.98613]
[1742762862764,27.626,2003.0,2002.8,4.993]
[1742762863093,27.626,2003.0,2002.8,10.80737]
[1742762863288,28.60822014,2003.0,2002.8,10.80737]
[1742762863497,28.60822014,2003.0,2002.8,5.81437]
[1742762864076,28.60822014,2003.0,2002.8,10.80723]
[1742762867779,28.60822014,2003.0,2002.8,5.81436]
[1742762867983,28.60822014,2003.0,2002.8,4.99286]
[1742762868682,0.98222014,2003.0,2002.8,4.99286]
[1742762869675,0.98222014,2003.0,2002.7,4.99317]
[1742762870709,0.98222014,2003.0,2002.7,9.98627]
[1742762870902,0.98222014,2003.0,2002.7,11.37013458]
[1742762871103,0.12313575,2002.9,2002.7,11.37013458]
[1742762874120,0.12313575,2002.9,2002.8,4.993]
[1742762876809,0.12313575,2002.9,2002.7,6.37695458]
[1742762877104,0.12313575,2002.9,2002.8,4.993]
[1742762879510,0.12313575,2002.9,2002.8,6.21214546]
[1742762880809,0.12313575,2002.9,2002.8,1.21914546]
[1742762881000,0.12313575,2002.9,2002.7,4.99309]
[1742762881305,1.89729918,2002.9,2002.6,4.99342]
[1742762881714,0.12313575,2002.9,2002.6,4.99342]
[1742762885812,6.89006918,2002.9,2002.5,4.99368]
[1742762885979,6.89006918,2002.9,2002.5,9.98728]
[1742762886183,6.89006918,2002.9,2002.5,4.9936]
[1742762886617,6.89006918,2002.9,2002.6,0.46760071]
[1742762887502,6.89006918,2002.9,2002.6,4.99348]
[1742762891709,6.89006918,2002.9,2002.7,0.46806681]
[1742762892519,6.89006918,2002.9,2002.6,4.99348]
[1742762894522,6.89006918,2002.9,2002.7,0.46815285]
[1742762894704,8.17652611,2002.9,2002.7,0.46815285]
[1742762895421,3.18375611,2002.9,2002.7,0.46815285]
[1742762895718,3.18375611,2002.9,2002.6,4.99348]
[1742762895914,1.89729918,2002.9,2002.6,4.99348]
[1742762896108,0.12313575,2002.9,2002.6,4.99348]
[1742762898019,0.12313575,2002.9,2002.7,0.46842638]
[1742762898721,0.12313575,2002.9,2002.6,9.98685]
[1742762899419,0.12313575,2002.9,2002.7,4.99324]
[1742762910930,3.18373811,2002.9,2002.4,5.81208]
[1742762911132,3.18373811,2002.9,2002.2,5.156]
[1742762911133,1.77416343,2002.6,2002.3,4.99413]
[1742762911342,0.09479508,2002.5,2002.4,4.99385]
[1742762911633,11.37322343,2002.8,2002.4,5.46272201]
[1742762911804,0.09486018,2002.5,2002.4,5.46272201]
[1742762912004,11.37322343,2002.8,2002.4,5.46272201]
[1742762912231,0.09479508,2002.5,2002.4,5.46272201]
[1742762912402,16.36644343,2002.8,2002.4,5.46272201]
[1742762912603,0.09486018,2002.5,2002.4,4.99385]
[1742762912898,16.36644343,2002.8,2002.4,4.99385]
[1742762913102,0.09486018,2002.5,2002.4,4.99385]
[1742762913304,16.36644343,2002.8,2002.4,4.99385]
[1742762913502,0.09486018,2002.5,2002.4,4.99385]
[1742762913733,6.76745343,2002.7,2002.3,4.99419]
[1742762913949,6.76745343,2002.7,2002.3,9.98833]
[1742762914154,0.09526749,2002.6,2002.3,9.98833]
[1742762914645,0.09526749,2002.6,2002.3,4.99414]
[1742762915449,0.09526749,2002.6,2002.3,4.99413]
[1742762916346,5.08878749,2002.6,2002.3,4.99413]
[1742762916546,6.86295092,2002.6,2002.2,4.99444]
[1742762917037,6.76806343,2002.5,2002.1,4.99473]
[1742762917370,6.76825343,2002.4,2002.0,4.99498]
[1742762917652,6.76869343,2002.2,2001.8,5.80728]
[1742762917822,11.76339343,2002.2,2001.8,4.99548]
[1742762918147,4.99489,2002.1,2001.7,6.76990343]
[1742762918353,4.99489,2002.1,2001.7,4.99563]
[1742762921263,6.00652069,2002.1,2001.7,4.99563]
[1742762922253,1.77416343,2001.9,2001.6,0.46725066]
[1742762922458,6.76966343,2001.8,2001.4,5.79128]
[1742762922763,4.9955,2001.8,2001.4,5.79128]
[1742762922931,9.99122,2001.8,2001.4,5.79128]
[1742762923452,4.99575,2001.7,2001.4,5.79128]
[1742762923652,6.76966343,2001.8,2001.4,5.79128]
[1742762923836,4.99525,2001.9,2001.5,4.99622]
[1742762924726,9.99074,2001.9,2001.5,4.99622]
[1742762924958,4.99525,2001.9,2001.5,4.99622]
[1742762925225,4.99551,2001.8,2001.5,4.99622]
[1742762925837,9.99074,2001.9,2001.5,4.99622]
[1742762926036,4.99525,2001.9,2001.5,4.99622]
[1742762926762,1.01446808,2001.7,2001.5,4.99622]
[1742762927559,1.01446808,2001.7,2001.5,9.99235]
[1742762927726,1.01446808,2001.7,2001.5,9.9922]
[1742762927928,1.01446808,2001.7,2001.5,4.99607]
[1742762930648,1.01446808,2001.7,2001.6,4.996]
[1742762936586,1.01446808,2001.7,2001.5,4.9962]
[1742762937975,4.608,2001.9,2001.7,4.99566]
[1742762938180,3.0,2002.0,2001.7,5.77556]
[1742762938346,3.0,2002.0,2001.8,4.99541]
[1742762939493,27.633,2002.1,2002.0,0.7799]
[1742762939699,4.9936,2002.6,2002.2,4.99442]
[1742762939853,4.13757634,2002.5,2002.2,4.99442]
[1742762940181,0.97991307,2002.4,2002.2,4.99442]
[1742762940697,0.97991307,2002.4,2002.0,5.77482]
[1742762940906,5.97401307,2002.4,2002.0,10.76965]
[1742762942081,5.97401307,2002.4,2002.0,5.77473]
[1742762943483,5.97401307,2002.4,2002.0,10.76957]
[1742762946185,5.97401307,2002.4,2002.0,5.77473]
[1742762946383,5.97401307,2002.4,2002.0,10.76957]
[1742762948490,5.97401307,2002.4,2002.1,4.99475]
[1742762948656,0.97991307,2002.4,2002.1,4.99461]
[1742762948852,3.0,2002.5,2002.1,7.52377077]
[1742762949359,3.97657423,2002.5,2002.1,7.52377077]
[1742762949987,8.97037423,2002.5,2002.1,5.74951734]
[1742762950691,8.97037423,2002.5,2002.1,10.74409734]
[1742762951589,13.96437423,2002.5,2002.1,5.74944734]
[1742762951758,4.9941,2002.4,2002.0,0.7799]
[1742762951961,4.99435,2002.3,2002.0,0.55]
[1742762953875,4.99435,2002.3,2002.0,5.54499]
[1742762954509,4.99451,2002.2,2001.9,4.99509]
[1742762954667,4.99451,2002.2,2001.8,4.99537]
[1742762954668,11.76337343,2002.2,2001.8,4.99537]
[1742762954984,4.99451,2002.2,2001.8,4.99537]
[1742762955593,0.98642588,2002.1,2001.8,9.99069]
[1742762956782,0.98642588,2002.1,2001.8,4.99532]
[1742762957695,5.98125588,2002.1,2001.7,4.99575]
[1742762957899,5.98125588,2002.1,2001.6,8.07156343]
[1742762957900,4.99507,2002.0,2001.6,6.2974]
[1742762958259,6.76928343,2002.0,2001.5,4.99624]
[1742762958464,6.76959343,2001.9,2001.4,4.99643]
[1742762958699,4.99584,2001.7,2001.3,5.74794]
[1742762958876,4.99555,2001.8,2001.4,4.99646]
[1742762960396,9.99125,2001.8,2001.4,4.99646]
[1742762960600,4.99555,2001.8,2001.4,4.99646]
[1742762961598,1.00342417,2001.7,2001.4,4.99646]
[1742762973914,1.00342417,2001.7,2001.6,4.996]
[1742762974518,4.608,2001.9,2001.6,4.996]
[1742762974720,7.95478875,2002.0,2001.6,4.996]
[1742762975045,3.0,2002.0,2001.7,4.99564]
[1742762975631,3.98277095,2002.0,2001.8,4.99549]
[1742762980047,3.98277095,2002.0,2001.7,6.77080832]
[1742762980451,3.98277095,2002.0,2001.7,4.9957]
[1742762982451,3.98277095,2002.0,2001.7,4.99563]
[1742762982751,0.98277095,2002.0,2001.9,6.77035832]
[1742762983144,0.98277095,2002.0,2001.9,4.99525]
[1742762993425,0.98277095,2002.0,2001.8,7.59680832]
[1742762993975,0.98277095,2002.0,2001.8,12.59213832]
[1742762994404,7.99452,2002.2,2001.9,6.77032832]
[1742762994703,3.0,2002.2,2001.9,6.77032832]
[1742762994904,1.00510108,2002.1,2001.9,6.77032832]
[1742762997905,1.00510108,2002.1,2001.9,4.99522]
[1742763000424,1.00510108,2002.1,2001.8,5.8217]
[1742763000588,5.99987108,2002.1,2001.8,4.9953]
[1742763000789,12.73245102,2002.1,2001.7,4.99569]
[1742763001917,7.73752102,2002.1,2001.7,4.9956]
[1742763002220,5.99987108,2002.1,2001.8,4.9955]
[1742763003619,5.99987108,2002.1,2001.7,6.77070832]
[1742763004325,5.99987108,2002.1,2001.8,0.4687194]
[1742763004800,1.00510108,2002.1,2001.8,10.4595794]
[1742763005389,1.00510108,2002.1,2001.8,4.99539]
[1742763006222,1.00510108,2002.1,2001.8,9.99075]
[1742763006522,1.00510108,2002.1,2001.8,4.99536]
[1742763006724,1.00510108,2002.1,2001.9,4.99525]
[1742763006893,1.00510108,2002.1,2001.8,4.99537]
[1742763007825,1.00510108,2002.1,2001.8,8.08136015]
[1742763008027,1.00510108,2002.1,2001.9,2.53850832]
[1742763009433,1.00510108,2002.1,2002.0,4.995]
[1742763009735,1.00510108,2002.1,2001.9,7.53366832]
[1742763010231,1.00510108,2002.1,2002.0,4.995]
[1742763013102,1.00510108,2002.1,2002.0,6.79786683]
[1742763014704,1.00510108,2002.1,2002.0,5.545]
[1742763014902,1.00510108,2002.1,2001.9,4.99516]
[1742763018704,1.00510108,2002.1,2001.8,4.99547]
[1742763018919,1.00510108,2002.1,2001.9,0.46904801]
[1742763019532,6.76961832,2002.2,2001.9,0.46904801]
[1742763019736,8.24600815,2002.2,2001.9,0.46904801]
[1742763020201,8.24600815,2002.2,2001.8,4.99547]
[1742763021742,13.24072815,2002.2,2001.8,4.99547]
[1742763022239,13.24072815,2002.2,2001.9,0.46905878]
[1742763022437,8.24600815,2002.2,2001.9,0.46905878]